[Event "Titled Tuesday Blitz December 13 Early 2022"]
[White "Manukyan, Sargis A."]
[Black "Szpar, Milosz"]
[WhiteFideId "13303970"]
[BlackFideId "1184989"]
[WhiteElo "2187"]
[BlackElo "2455"]
[Result "0-1"]
[Round "10"]
[TimeControl "180+1"]
[Date "2022.12.14"]
[WhiteClock "0:00:03"]
[BlackClock "0:01:18"]

1. Nf3 {[%clk 0:03:00]}  Nf6 {[%clk 0:02:59]} 2. c4 {[%clk 0:03:00]}  e6 {[%clk 0:02:59]} 3. Nc3 {[%clk 0:03:01]}  d5 {[%clk 0:03:00]} 4. d4 {[%clk 0:02:59]}  c6 {[%clk 0:02:59]} 5. e3 {[%clk 0:02:50]}  a6 {[%clk 0:02:57]} 6. Bd3 {[%clk 0:02:46]}  dxc4 {[%clk 0:02:45]} 7. Bxc4 {[%clk 0:02:46]}  b5 {[%clk 0:02:45]} 8. Bb3 {[%clk 0:02:41]}  c5 {[%clk 0:02:46]} 9. e4 {[%clk 0:02:39]}  cxd4 {[%clk 0:02:43]} 10. Nxd4 {[%clk 0:02:26]}  Bb7 {[%clk 0:02:43]} 11. e5 {[%clk 0:02:22]}  Nfd7 {[%clk 0:02:40]} 12. Qh5 {[%clk 0:02:05]}  g6 {[%clk 0:02:37]} 13. Qh3 {[%clk 0:02:04]}  Nxe5 {[%clk 0:02:28]} 14. Be3 {[%clk 0:01:43]}  Bg7 {[%clk 0:02:27]} 15. O-O-O {[%clk 0:01:33]}  Qe7 {[%clk 0:02:26]} 16. Rhe1 {[%clk 0:01:24]}  b4 {[%clk 0:02:22]} 17. Na4 {[%clk 0:01:20]}  Nbd7 {[%clk 0:02:22]} 18. f4 {[%clk 0:01:12]}  Rc8+ {[%clk 0:02:21]} 19. Kb1 {[%clk 0:01:12]}  Be4+ {[%clk 0:02:16]} 20. Ka1 {[%clk 0:01:12]}  Nd3 {[%clk 0:02:16]} 21. Re2 {[%clk 0:01:06]}  O-O {[%clk 0:02:16]} 22. Bg1 {[%clk 0:00:55]}  N3c5 {[%clk 0:02:01]} 23. Nxc5 {[%clk 0:00:51]}  Nxc5 {[%clk 0:02:02]} 24. Bc4 {[%clk 0:00:35]}  Rfd8 {[%clk 0:02:02]} 25. Red2 {[%clk 0:00:25]}  a5 {[%clk 0:01:56]} 26. Qe3 {[%clk 0:00:21]}  a4 {[%clk 0:01:54]} 27. Bb5 {[%clk 0:00:14]}  a3 {[%clk 0:01:52]} 28. bxa3 {[%clk 0:00:06]}  bxa3 {[%clk 0:01:30]} 29. Qxa3 {[%clk 0:00:07]}  Ra8 {[%clk 0:01:21]} 30. Qb2 {[%clk 0:00:03]}  Bd5 {[%clk 0:01:18]} 0-1


[Site "https://www.chess.com"]

[Event "Titled Tuesday Blitz December 13 Early 2022"]
[White "Mikhailovsky, Vladimir"]
[Black "Kuzmin, Roman"]
[WhiteFideId "34105414"]
[BlackFideId "44134932"]
[WhiteElo "2295"]
[BlackElo "2180"]
[Result "0-1"]
[Round "10"]
[TimeControl "180+1"]
[Date "2022.12.14"]
[WhiteClock "0:00:02"]
[BlackClock "0:00:08"]

1. Nf3 {[%clk 0:02:59]}  Nf6 {[%clk 0:03:00]} 2. c4 {[%clk 0:02:59]}  e6 {[%clk 0:03:00]} 3. e3 {[%clk 0:02:59]}  d5 {[%clk 0:03:01]} 4. Nc3 {[%clk 0:02:59]}  Be7 {[%clk 0:03:01]} 5. b3 {[%clk 0:03:00]}  O-O {[%clk 0:03:01]} 6. Bb2 {[%clk 0:03:00]}  c6 {[%clk 0:03:02]} 7. Qc2 {[%clk 0:02:58]}  b6 {[%clk 0:03:02]} 8. h4 {[%clk 0:02:57]}  Bb7 {[%clk 0:03:02]} 9. Ng5 {[%clk 0:02:55]}  e5 {[%clk 0:02:58]} 10. Qf5 {[%clk 0:02:34]}  Bd6 {[%clk 0:02:48]} 11. Bd3 {[%clk 0:02:29]}  Bc8 {[%clk 0:02:38]} 12. Qf3 {[%clk 0:02:15]}  e4 {[%clk 0:02:36]} 13. Ncxe4 {[%clk 0:02:01]}  dxe4 {[%clk 0:02:32]} 14. Nxe4 {[%clk 0:00:49]}  Nxe4 {[%clk 0:02:26]} 15. Bxe4 {[%clk 0:00:50]}  f5 {[%clk 0:02:09]} 16. Bxc6 {[%clk 0:00:42]}  Nxc6 {[%clk 0:02:10]} 17. Qxc6 {[%clk 0:00:42]}  Rb8 {[%clk 0:02:10]} 18. Qd5+ {[%clk 0:00:41]}  Rf7 {[%clk 0:02:08]} 19. h5 {[%clk 0:00:40]}  Bb7 {[%clk 0:02:06]} 20. Qd4 {[%clk 0:00:37]}  Bc7 {[%clk 0:02:00]} 21. Qxd8+ {[%clk 0:00:24]}  Rxd8 {[%clk 0:02:01]} 22. f3 {[%clk 0:00:24]}  Rfd7 {[%clk 0:01:34]} 23. Bc3 {[%clk 0:00:23]}  f4 {[%clk 0:01:28]} 24. e4 {[%clk 0:00:21]}  Rd3 {[%clk 0:01:27]} 25. Ke2 {[%clk 0:00:21]}  Ba6 {[%clk 0:01:26]} 26. a4 {[%clk 0:00:20]}  Bb7 {[%clk 0:01:21]} 27. Rh4 {[%clk 0:00:16]}  Bc8 {[%clk 0:01:07]} 28. e5 {[%clk 0:00:10]}  Rxc3 {[%clk 0:00:41]} 29. dxc3 {[%clk 0:00:10]}  Bxe5 {[%clk 0:00:42]} 30. Rd1 {[%clk 0:00:09]}  Re8 {[%clk 0:00:20]} 31. Kf1 {[%clk 0:00:04]}  g5 {[%clk 0:00:17]} 32. hxg6 {[%clk 0:00:04]}  hxg6 {[%clk 0:00:18]} 33. b4 {[%clk 0:00:03]}  Kg7 {[%clk 0:00:16]} 34. c5 {[%clk 0:00:03]}  bxc5 {[%clk 0:00:16]} 35. bxc5 {[%clk 0:00:03]}  g5 {[%clk 0:00:16]} 36. Rh1 {[%clk 0:00:02]}  Ba6+ {[%clk 0:00:15]} 37. Kf2 {[%clk 0:00:02]}  Bxc3 {[%clk 0:00:13]} 38. Rd7+ {[%clk 0:00:03]}  Kg8 {[%clk 0:00:09]} 39. Rc1 {[%clk 0:00:02]}  Re2+ {[%clk 0:00:08]} 0-1


[Site "https://www.chess.com"]

[Event "Titled Tuesday Blitz December 13 Early 2022"]
[White "Mogirzan, Matei-Valeriu"]
[Black "Lamaze, Simon"]
[WhiteFideId "1257455"]
[BlackFideId "36069264"]
[WhiteElo "1733"]
[BlackElo "2272"]
[Result "1-0"]
[Round "10"]
[TimeControl "180+1"]
[Date "2022.12.13"]
[WhiteClock "0:00:01"]
[BlackClock "0:01:00"]

1. e4 {[%clk 0:03:00]}  c5 {[%clk 0:03:00]} 2. Nf3 {[%clk 0:03:01]}  Nc6 {[%clk 0:03:01]} 3. Bb5 {[%clk 0:03:00]}  d6 {[%clk 0:03:00]} 4. O-O {[%clk 0:02:56]}  Bd7 {[%clk 0:02:57]} 5. Nc3 {[%clk 0:02:56]}  Nf6 {[%clk 0:02:55]} 6. Bxc6 {[%clk 0:02:53]}  Bxc6 {[%clk 0:02:56]} 7. d4 {[%clk 0:02:54]}  cxd4 {[%clk 0:02:55]} 8. Nxd4 {[%clk 0:02:55]}  e5 {[%clk 0:02:54]} 9. Nxc6 {[%clk 0:02:53]}  bxc6 {[%clk 0:02:55]} 10. f4 {[%clk 0:02:53]}  Be7 {[%clk 0:02:54]} 11. f5 {[%clk 0:02:50]}  d5 {[%clk 0:02:53]} 12. exd5 {[%clk 0:02:48]}  cxd5 {[%clk 0:02:54]} 13. Kh1 {[%clk 0:02:47]}  O-O {[%clk 0:02:53]} 14. Bg5 {[%clk 0:02:44]}  Rb8 {[%clk 0:02:48]} 15. Bxf6 {[%clk 0:02:40]}  Bxf6 {[%clk 0:02:47]} 16. Nxd5 {[%clk 0:02:29]}  Rxb2 {[%clk 0:02:47]} 17. Qd3 {[%clk 0:02:21]}  Bg5 {[%clk 0:02:34]} 18. Qe4 {[%clk 0:02:16]}  Qc8 {[%clk 0:02:24]} 19. f6 {[%clk 0:02:11]}  Qxc2 {[%clk 0:02:05]} 20. Qg4 {[%clk 0:00:55]}  h6 {[%clk 0:01:26]} 21. h4 {[%clk 0:00:45]}  Rd8 {[%clk 0:01:26]} 22. Ne7+ {[%clk 0:00:40]}  Kh7 {[%clk 0:01:25]} 23. hxg5 {[%clk 0:00:38]}  Rd4 {[%clk 0:01:24]} 24. Qf5+ {[%clk 0:00:25]}  Qxf5 {[%clk 0:01:24]} 25. Nxf5 {[%clk 0:00:26]}  Rg4 {[%clk 0:01:24]} 26. g3 {[%clk 0:00:17]}  Rxg5 {[%clk 0:01:20]} 27. fxg7 {[%clk 0:00:15]}  Rh5+ {[%clk 0:01:18]} 28. Kg1 {[%clk 0:00:12]}  Rhh2 {[%clk 0:01:18]} 29. Nh4 {[%clk 0:00:07]}  Kxg7 {[%clk 0:01:17]} 30. Rfe1 {[%clk 0:00:05]}  f6 {[%clk 0:01:16]} 31. a4 {[%clk 0:00:05]}  Rhc2 {[%clk 0:01:13]} 32. Rad1 {[%clk 0:00:05]}  h5 {[%clk 0:01:13]} 33. Rd7+ {[%clk 0:00:04]}  Kh6 {[%clk 0:01:13]} 34. Rf1 {[%clk 0:00:02]}  f5 {[%clk 0:01:02]} 35. Rd6+ {[%clk 0:00:02]}  Kg5 {[%clk 0:01:00]} 36. Rg6# {[%clk 0:00:01]} 1-0


[Site "https://www.chess.com"]

[Event "Titled Tuesday Blitz December 13 Early 2022"]
[White "Nakamura, Hikaru"]
[Black "Bluebaum, Matthias"]
[WhiteFideId "2016192"]
[BlackFideId "24651516"]
[WhiteElo "2909"]
[BlackElo "2634"]
[Result "0-1"]
[Round "10"]
[TimeControl "180+1"]
[Date "2022.12.13"]
[WhiteClock "0:00:13"]
[BlackClock "0:00:16"]

1. Nf3 {[%clk 0:03:00]}  d5 {[%clk 0:03:00]} 2. g3 {[%clk 0:02:58]}  c5 {[%clk 0:03:00]} 3. Bg2 {[%clk 0:02:55]}  Nc6 {[%clk 0:03:01]} 4. O-O {[%clk 0:02:52]}  e5 {[%clk 0:03:01]} 5. c4 {[%clk 0:02:52]}  d4 {[%clk 0:03:00]} 6. e3 {[%clk 0:02:52]}  Nf6 {[%clk 0:02:58]} 7. Re1 {[%clk 0:02:44]}  Be7 {[%clk 0:02:58]} 8. exd4 {[%clk 0:02:37]}  exd4 {[%clk 0:02:59]} 9. Ne5 {[%clk 0:02:38]}  Nxe5 {[%clk 0:02:58]} 10. Rxe5 {[%clk 0:02:39]}  O-O {[%clk 0:02:59]} 11. d3 {[%clk 0:02:39]}  Bd6 {[%clk 0:02:59]} 12. Re1 {[%clk 0:02:39]}  Bg4 {[%clk 0:03:00]} 13. Bf3 {[%clk 0:02:29]}  Qd7 {[%clk 0:03:00]} 14. Bg5 {[%clk 0:02:27]}  Qf5 {[%clk 0:02:49]} 15. Bf4 {[%clk 0:02:08]}  Bxf3 {[%clk 0:02:30]} 16. Qxf3 {[%clk 0:02:09]}  g5 {[%clk 0:02:30]} 17. h3 {[%clk 0:01:52]}  gxf4 {[%clk 0:02:28]} 18. g4 {[%clk 0:01:52]}  Qg6 {[%clk 0:02:29]} 19. Nd2 {[%clk 0:01:50]}  h5 {[%clk 0:02:16]} 20. g5 {[%clk 0:01:46]}  Qxg5+ {[%clk 0:02:16]} 21. Kh1 {[%clk 0:01:46]}  Kh8 {[%clk 0:02:13]} 22. Qxb7 {[%clk 0:01:44]}  Rg8 {[%clk 0:02:09]} 23. Qf3 {[%clk 0:01:35]}  Qh4 {[%clk 0:01:55]} 24. b4 {[%clk 0:01:31]}  Ng4 {[%clk 0:01:43]} 25. Re2 {[%clk 0:01:30]}  Ne5 {[%clk 0:01:39]} 26. Rxe5 {[%clk 0:01:30]}  Bxe5 {[%clk 0:01:40]} 27. bxc5 {[%clk 0:01:30]}  Rab8 {[%clk 0:01:39]} 28. Re1 {[%clk 0:01:28]}  Bf6 {[%clk 0:01:19]} 29. c6 {[%clk 0:01:23]}  Rbe8 {[%clk 0:01:00]} 30. Ne4 {[%clk 0:01:19]}  Bd8 {[%clk 0:00:57]} 31. Rb1 {[%clk 0:01:18]}  Rg6 {[%clk 0:00:54]} 32. Rb5 {[%clk 0:01:18]}  Kg7 {[%clk 0:00:32]} 33. Rxh5 {[%clk 0:00:49]}  Qe7 {[%clk 0:00:33]} 34. Qxf4 {[%clk 0:00:50]}  Rh8 {[%clk 0:00:33]} 35. Rxh8 {[%clk 0:00:33]}  Kxh8 {[%clk 0:00:34]} 36. Ng3 {[%clk 0:00:34]}  Bc7 {[%clk 0:00:33]} 37. Qxd4+ {[%clk 0:00:33]}  Kg8 {[%clk 0:00:33]} 38. Ne4 {[%clk 0:00:20]}  Qe6 {[%clk 0:00:30]} 39. Qe3 {[%clk 0:00:19]}  Qxc6 {[%clk 0:00:29]} 40. Qf3 {[%clk 0:00:19]}  Qe6 {[%clk 0:00:28]} 41. h4 {[%clk 0:00:17]}  f5 {[%clk 0:00:29]} 42. Ng5 {[%clk 0:00:17]}  Qe5 {[%clk 0:00:22]} 43. Kg2 {[%clk 0:00:15]}  Rb6 {[%clk 0:00:19]} 44. Qh5 {[%clk 0:00:11]}  Qh2+ {[%clk 0:00:16]} 45. Kf3 {[%clk 0:00:12]}  Qf4+ {[%clk 0:00:17]} 46. Kg2 {[%clk 0:00:11]}  Qg4+ {[%clk 0:00:18]} 47. Qxg4 {[%clk 0:00:12]}  fxg4 {[%clk 0:00:19]} 48. d4 {[%clk 0:00:12]}  Ra6 {[%clk 0:00:18]} 49. c5 {[%clk 0:00:12]}  Rxa2 {[%clk 0:00:18]} 50. Ne6 {[%clk 0:00:12]}  Bb8 {[%clk 0:00:16]} 51. c6 {[%clk 0:00:12]}  Rc2 {[%clk 0:00:16]} 52. d5 {[%clk 0:00:13]}  a5 {[%clk 0:00:17]} 53. Nd4 {[%clk 0:00:14]}  Rc4 {[%clk 0:00:16]} 54. Nb5 {[%clk 0:00:14]}  a4 {[%clk 0:00:15]} 55. h5 {[%clk 0:00:13]}  Rc5 {[%clk 0:00:15]} 56. d6 {[%clk 0:00:13]}  Bxd6 {[%clk 0:00:15]} 57. Nxd6 {[%clk 0:00:12]}  Rxc6 {[%clk 0:00:16]} 58. Ne4 {[%clk 0:00:13]}  a3 {[%clk 0:00:16]} 0-1


[Site "https://www.chess.com"]

[Event "Titled Tuesday Blitz December 13 Early 2022"]
[White "Osiecki, Stanislaw"]
[Black "Herman, Daniel"]
[WhiteFideId "1102990"]
[BlackFideId "30935008"]
[WhiteElo "2088"]
[BlackElo "1897"]
[Result "0-1"]
[Round "10"]
[TimeControl "180+1"]
[Date "2022.12.14"]
[WhiteClock "0:00:18"]
[BlackClock "0:00:21"]

1. e4 {[%clk 0:02:50]}  e6 {[%clk 0:03:00]} 2. d4 {[%clk 0:02:49]}  c5 {[%clk 0:03:01]} 3. c3 {[%clk 0:02:44]}  d5 {[%clk 0:02:59]} 4. e5 {[%clk 0:02:44]}  Nc6 {[%clk 0:02:58]} 5. Nf3 {[%clk 0:02:44]}  Qb6 {[%clk 0:02:56]} 6. Bd3 {[%clk 0:02:44]}  Bd7 {[%clk 0:02:54]} 7. dxc5 {[%clk 0:02:44]}  Bxc5 {[%clk 0:02:54]} 8. O-O {[%clk 0:02:44]}  a5 {[%clk 0:02:38]} 9. Nbd2 {[%clk 0:02:43]}  a4 {[%clk 0:02:20]} 10. b4 {[%clk 0:02:43]}  axb3 {[%clk 0:02:19]} 11. Nxb3 {[%clk 0:02:43]}  Nge7 {[%clk 0:02:12]} 12. Nxc5 {[%clk 0:02:43]}  Qxc5 {[%clk 0:02:13]} 13. Qe1 {[%clk 0:02:16]}  O-O {[%clk 0:02:10]} 14. a4 {[%clk 0:02:07]}  Rfc8 {[%clk 0:02:08]} 15. Ba3 {[%clk 0:02:04]}  Qa5 {[%clk 0:02:08]} 16. Bd6 {[%clk 0:02:03]}  Nf5 {[%clk 0:02:04]} 17. Qb1 {[%clk 0:01:57]}  Nxd6 {[%clk 0:02:03]} 18. Bxh7+ {[%clk 0:01:53]}  Kh8 {[%clk 0:02:03]} 19. exd6 {[%clk 0:01:52]}  f5 {[%clk 0:01:15]} 20. Bg6 {[%clk 0:01:36]}  Qxc3 {[%clk 0:01:11]} 21. h4 {[%clk 0:01:08]}  Qf6 {[%clk 0:01:05]} 22. h5 {[%clk 0:01:08]}  e5 {[%clk 0:01:05]} 23. Qxb7 {[%clk 0:01:05]}  Ra7 {[%clk 0:01:04]} 24. Qb3 {[%clk 0:01:00]}  Qxd6 {[%clk 0:00:59]} 25. Ng5 {[%clk 0:00:57]}  Be6 {[%clk 0:00:51]} 26. Bf7 {[%clk 0:00:53]}  Bxf7 {[%clk 0:00:50]} 27. Nxf7+ {[%clk 0:00:53]}  Rxf7 {[%clk 0:00:51]} 28. Rfd1 {[%clk 0:00:48]}  Nd4 {[%clk 0:00:49]} 29. Qh3 {[%clk 0:00:47]}  Ra8 {[%clk 0:00:40]} 30. a5 {[%clk 0:00:44]}  Rfa7 {[%clk 0:00:39]} 31. Ra3 {[%clk 0:00:39]}  Rxa5 {[%clk 0:00:36]} 32. Re3 {[%clk 0:00:36]}  Ra3 {[%clk 0:00:29]} 33. Rxa3 {[%clk 0:00:30]}  Rxa3 {[%clk 0:00:30]} 34. Qh4 {[%clk 0:00:30]}  Qf6 {[%clk 0:00:28]} 35. Qh2 {[%clk 0:00:28]}  Qg5 {[%clk 0:00:27]} 36. Kh1 {[%clk 0:00:26]}  f4 {[%clk 0:00:25]} 37. Rb1 {[%clk 0:00:24]}  Ra2 {[%clk 0:00:21]} 38. Rb8+ {[%clk 0:00:22]}  Kh7 {[%clk 0:00:22]} 39. Qg1 {[%clk 0:00:18]}  Qh4+ {[%clk 0:00:21]} 40. Qh2 {[%clk 0:00:18]}  Ra1+ {[%clk 0:00:21]} 0-1


[Site "https://www.chess.com"]

[Event "Titled Tuesday Blitz December 13 Early 2022"]
[White "Pajeken, Jakob Leon"]
[Black "Yuan, Qingyu"]
[WhiteFideId "12942839"]
[BlackFideId "8609772"]
[WhiteElo "2617"]
[BlackElo "2764"]
[Result "0-1"]
[Round "10"]
[TimeControl "180+1"]
[Date "2022.12.14"]
[WhiteClock "0:00:53"]
[BlackClock "0:00:11"]

1. e4 {[%clk 0:03:00]}  e5 {[%clk 0:02:59]} 2. Nf3 {[%clk 0:03:01]}  Nc6 {[%clk 0:03:00]} 3. Bc4 {[%clk 0:03:01]}  Bc5 {[%clk 0:03:00]} 4. c3 {[%clk 0:03:01]}  Nf6 {[%clk 0:03:00]} 5. d4 {[%clk 0:03:01]}  exd4 {[%clk 0:03:01]} 6. e5 {[%clk 0:03:01]}  d5 {[%clk 0:03:01]} 7. Bb5 {[%clk 0:03:01]}  Ne4 {[%clk 0:03:02]} 8. cxd4 {[%clk 0:03:01]}  Bb6 {[%clk 0:03:02]} 9. Nc3 {[%clk 0:03:00]}  O-O {[%clk 0:03:03]} 10. Be3 {[%clk 0:03:00]}  Bg4 {[%clk 0:03:03]} 11. h3 {[%clk 0:03:00]}  Bh5 {[%clk 0:03:03]} 12. Qc2 {[%clk 0:03:00]}  Ba5 {[%clk 0:02:44]} 13. O-O-O {[%clk 0:02:50]}  Nb4 {[%clk 0:02:09]} 14. Qa4 {[%clk 0:02:39]}  c6 {[%clk 0:02:05]} 15. Bd3 {[%clk 0:02:36]}  Nxc3 {[%clk 0:01:47]} 16. bxc3 {[%clk 0:02:32]}  Nxd3+ {[%clk 0:01:47]} 17. Rxd3 {[%clk 0:02:32]}  Bg6 {[%clk 0:01:48]} 18. Kd2 {[%clk 0:02:04]}  Qb6 {[%clk 0:01:44]} 19. Nh4 {[%clk 0:01:57]}  Be4 {[%clk 0:01:31]} 20. Rc1 {[%clk 0:01:48]}  Qa6 {[%clk 0:01:20]} 21. Qc2 {[%clk 0:01:47]}  Rac8 {[%clk 0:01:11]} 22. f3 {[%clk 0:01:45]}  Bxd3 {[%clk 0:01:09]} 23. Qxd3 {[%clk 0:01:46]}  Qxd3+ {[%clk 0:01:09]} 24. Kxd3 {[%clk 0:01:46]}  g6 {[%clk 0:01:06]} 25. f4 {[%clk 0:01:44]}  Bd8 {[%clk 0:01:01]} 26. Nf3 {[%clk 0:01:44]}  b6 {[%clk 0:00:59]} 27. g4 {[%clk 0:01:39]}  c5 {[%clk 0:00:41]} 28. f5 {[%clk 0:01:40]}  Re8 {[%clk 0:00:39]} 29. dxc5 {[%clk 0:01:25]}  bxc5 {[%clk 0:00:39]} 30. c4 {[%clk 0:01:24]}  d4 {[%clk 0:00:36]} 31. Bf4 {[%clk 0:01:24]}  Bc7 {[%clk 0:00:36]} 32. Ke4 {[%clk 0:01:21]}  Bxe5 {[%clk 0:00:28]} 33. Bxe5 {[%clk 0:01:14]}  f6 {[%clk 0:00:28]} 34. Re1 {[%clk 0:01:12]}  fxe5 {[%clk 0:00:27]} 35. f6 {[%clk 0:01:11]}  Kf7 {[%clk 0:00:16]} 36. g5 {[%clk 0:01:07]}  Rb8 {[%clk 0:00:14]} 37. Kd5 {[%clk 0:00:55]}  Rbd8+ {[%clk 0:00:11]} 38. Kxc5 {[%clk 0:00:54]}  e4 {[%clk 0:00:11]} 39. Nxd4 {[%clk 0:00:53]}  Re5+ {[%clk 0:00:11]} 0-1


[Site "https://www.chess.com"]

[Event "Titled Tuesday Blitz December 13 Early 2022"]
[White "Pein, Jonathan"]
[Black "Pakleza, Zbigniew"]
[WhiteFideId "417092"]
[BlackFideId "1119290"]
[WhiteElo "2225"]
[BlackElo "2410"]
[Result "1-0"]
[Round "10"]
[TimeControl "180+1"]
[Date "2022.12.14"]
[WhiteClock "0:00:10"]
[BlackClock "0:00:01"]

1. d4 {[%clk 0:02:59]}  d6 {[%clk 0:02:58]} 2. e4 {[%clk 0:02:58]}  Nf6 {[%clk 0:02:58]} 3. Nc3 {[%clk 0:02:58]}  c6 {[%clk 0:02:58]} 4. h3 {[%clk 0:02:55]}  b5 {[%clk 0:02:58]} 5. Bd3 {[%clk 0:02:39]}  e5 {[%clk 0:02:57]} 6. dxe5 {[%clk 0:02:39]}  dxe5 {[%clk 0:02:58]} 7. Nf3 {[%clk 0:02:39]}  Nbd7 {[%clk 0:02:58]} 8. O-O {[%clk 0:02:39]}  Be7 {[%clk 0:02:55]} 9. a4 {[%clk 0:02:39]}  b4 {[%clk 0:02:55]} 10. Ne2 {[%clk 0:02:40]}  O-O {[%clk 0:02:55]} 11. Ng3 {[%clk 0:02:41]}  Re8 {[%clk 0:02:56]} 12. Bc4 {[%clk 0:02:37]}  h6 {[%clk 0:02:49]} 13. Nf5 {[%clk 0:02:37]}  Bf8 {[%clk 0:02:48]} 14. Nd6 {[%clk 0:02:37]}  Bxd6 {[%clk 0:02:48]} 15. Qxd6 {[%clk 0:02:38]}  Qe7 {[%clk 0:02:10]} 16. Qxe7 {[%clk 0:02:36]}  Rxe7 {[%clk 0:02:10]} 17. Re1 {[%clk 0:02:32]}  Nc5 {[%clk 0:01:57]} 18. b3 {[%clk 0:02:06]}  Nfxe4 {[%clk 0:01:20]} 19. Bb2 {[%clk 0:02:06]}  Nc3 {[%clk 0:01:17]} 20. Bxc3 {[%clk 0:02:01]}  bxc3 {[%clk 0:01:18]} 21. Nxe5 {[%clk 0:01:44]}  Bf5 {[%clk 0:01:10]} 22. Nxf7 {[%clk 0:01:34]}  Kf8 {[%clk 0:00:53]} 23. Ne5 {[%clk 0:01:19]}  Rae8 {[%clk 0:00:29]} 24. f4 {[%clk 0:01:09]}  g5 {[%clk 0:00:30]} 25. Rf1 {[%clk 0:01:06]}  Kg7 {[%clk 0:00:28]} 26. Nxc6 {[%clk 0:01:02]}  Rd7 {[%clk 0:00:15]} 27. fxg5 {[%clk 0:01:03]}  Bxc2 {[%clk 0:00:15]} 28. gxh6+ {[%clk 0:01:01]}  Kxh6 {[%clk 0:00:15]} 29. Rf6+ {[%clk 0:00:51]}  Kg5 {[%clk 0:00:12]} 30. Rf3 {[%clk 0:00:40]}  Bd3 {[%clk 0:00:08]} 31. Bxd3 {[%clk 0:00:39]}  Rxd3 {[%clk 0:00:07]} 32. Rc1 {[%clk 0:00:25]}  Rxf3 {[%clk 0:00:06]} 33. gxf3 {[%clk 0:00:25]}  Re3 {[%clk 0:00:06]} 34. Kf2 {[%clk 0:00:23]}  Kf4 {[%clk 0:00:05]} 35. Nb4 {[%clk 0:00:14]}  Nxb3 {[%clk 0:00:03]} 36. Rxc3 {[%clk 0:00:11]}  Re8 {[%clk 0:00:01]} 37. Rxb3 {[%clk 0:00:10]} 1-0


[Site "https://www.chess.com"]

[Event "Titled Tuesday Blitz December 13 Early 2022"]
[White "Petrova, Irina"]
[Black "Derjabin, Ilja"]
[WhiteFideId "14124122"]
[BlackFideId "14104768"]
[WhiteElo "2023"]
[BlackElo "2309"]
[Result "0-1"]
[Round "10"]
[TimeControl "180+1"]
[Date "2022.12.14"]
[WhiteClock "0:00:07"]
[BlackClock "0:00:10"]

1. e4 {[%clk 0:03:00]}  c5 {[%clk 0:02:57]} 2. Nf3 {[%clk 0:03:00]}  d6 {[%clk 0:02:57]} 3. Bb5+ {[%clk 0:02:59]}  Bd7 {[%clk 0:02:57]} 4. Bxd7+ {[%clk 0:02:59]}  Qxd7 {[%clk 0:02:58]} 5. O-O {[%clk 0:02:59]}  Nc6 {[%clk 0:02:58]} 6. c3 {[%clk 0:02:58]}  Nf6 {[%clk 0:02:58]} 7. Re1 {[%clk 0:02:59]}  e6 {[%clk 0:02:59]} 8. d4 {[%clk 0:02:59]}  cxd4 {[%clk 0:02:59]} 9. cxd4 {[%clk 0:03:00]}  d5 {[%clk 0:03:00]} 10. e5 {[%clk 0:03:01]}  Ne4 {[%clk 0:03:01]} 11. Nbd2 {[%clk 0:03:01]}  Nxd2 {[%clk 0:02:53]} 12. Bxd2 {[%clk 0:03:02]}  Be7 {[%clk 0:02:53]} 13. Rc1 {[%clk 0:02:59]}  h6 {[%clk 0:02:52]} 14. a3 {[%clk 0:02:59]}  O-O {[%clk 0:02:51]} 15. Rc3 {[%clk 0:02:59]}  Na5 {[%clk 0:02:48]} 16. h4 {[%clk 0:02:52]}  Rac8 {[%clk 0:02:46]} 17. Rd3 {[%clk 0:02:50]}  Qb5 {[%clk 0:02:39]} 18. Bxa5 {[%clk 0:02:50]}  Qxa5 {[%clk 0:02:37]} 19. Nh2 {[%clk 0:02:44]}  Bxh4 {[%clk 0:02:33]} 20. b4 {[%clk 0:02:44]}  Qb5 {[%clk 0:02:22]} 21. Rh3 {[%clk 0:02:42]}  Bg5 {[%clk 0:02:16]} 22. Qg4 {[%clk 0:02:41]}  f5 {[%clk 0:01:30]} 23. exf6 {[%clk 0:02:38]}  Rxf6 {[%clk 0:01:30]} 24. Nf3 {[%clk 0:02:31]}  Bf4 {[%clk 0:01:14]} 25. g3 {[%clk 0:02:04]}  Bd6 {[%clk 0:01:13]} 26. Rxe6 {[%clk 0:01:54]}  Rc1+ {[%clk 0:01:11]} 27. Re1 {[%clk 0:01:49]}  Rxe1+ {[%clk 0:01:11]} 28. Nxe1 {[%clk 0:01:48]}  Qe8 {[%clk 0:01:06]} 29. Kf1 {[%clk 0:01:38]}  Qe3 {[%clk 0:00:45]} 30. Qc8+ {[%clk 0:01:09]}  Kh7 {[%clk 0:00:45]} 31. Qc2+ {[%clk 0:01:08]}  Kg8 {[%clk 0:00:34]} 32. Qc8+ {[%clk 0:01:01]}  Bf8 {[%clk 0:00:33]} 33. Qc2 {[%clk 0:00:53]}  Qxd4 {[%clk 0:00:33]} 34. Rh4 {[%clk 0:00:51]}  Qa1 {[%clk 0:00:30]} 35. Qd2 {[%clk 0:00:34]}  Qe5 {[%clk 0:00:25]} 36. Rd4 {[%clk 0:00:25]}  Qxg3 {[%clk 0:00:24]} 37. Rxd5 {[%clk 0:00:25]}  Qh3+ {[%clk 0:00:24]} 38. Ke2 {[%clk 0:00:20]}  Re6+ {[%clk 0:00:23]} 39. Kd1 {[%clk 0:00:20]}  Qh1 {[%clk 0:00:23]} 40. Rd8 {[%clk 0:00:19]}  h5 {[%clk 0:00:18]} 41. a4 {[%clk 0:00:15]}  Rf6 {[%clk 0:00:17]} 42. Qd5+ {[%clk 0:00:13]}  Qxd5+ {[%clk 0:00:16]} 43. Rxd5 {[%clk 0:00:14]}  Rh6 {[%clk 0:00:16]} 44. Ng2 {[%clk 0:00:14]}  Bxb4 {[%clk 0:00:15]} 45. Ke2 {[%clk 0:00:13]}  h4 {[%clk 0:00:15]} 46. Ne3 {[%clk 0:00:12]}  h3 {[%clk 0:00:13]} 47. Rd1 {[%clk 0:00:12]}  h2 {[%clk 0:00:14]} 48. Rh1 {[%clk 0:00:12]}  Bd6 {[%clk 0:00:14]} 49. Kf3 {[%clk 0:00:13]}  Rf6+ {[%clk 0:00:10]} 50. Kg2 {[%clk 0:00:12]}  Rf4 {[%clk 0:00:10]} 51. Nf1 {[%clk 0:00:12]}  Rxa4 {[%clk 0:00:10]} 52. Ng3 {[%clk 0:00:12]}  Bxg3 {[%clk 0:00:09]} 53. Kxg3 {[%clk 0:00:11]}  b5 {[%clk 0:00:09]} 54. Rxh2 {[%clk 0:00:09]}  b4 {[%clk 0:00:10]} 55. Rh5 {[%clk 0:00:09]}  a5 {[%clk 0:00:09]} 56. Rb5 {[%clk 0:00:09]}  Ra3+ {[%clk 0:00:10]} 57. Kg4 {[%clk 0:00:09]}  b3 {[%clk 0:00:10]} 58. Kg5 {[%clk 0:00:09]}  Kf7 {[%clk 0:00:10]} 59. Rb6 {[%clk 0:00:09]}  a4 {[%clk 0:00:09]} 60. Kf5 {[%clk 0:00:10]}  Ra2 {[%clk 0:00:08]} 61. Rb7+ {[%clk 0:00:09]}  Ke8 {[%clk 0:00:09]} 62. Ke6 {[%clk 0:00:09]}  Re2+ {[%clk 0:00:08]} 63. Kd6 {[%clk 0:00:08]}  b2 {[%clk 0:00:09]} 64. Rb8+ {[%clk 0:00:08]}  Kf7 {[%clk 0:00:09]} 65. Rb7+ {[%clk 0:00:09]}  Kf6 {[%clk 0:00:09]} 66. f4 {[%clk 0:00:08]}  a3 {[%clk 0:00:09]} 67. Rb3 {[%clk 0:00:07]}  a2 {[%clk 0:00:10]} 0-1


[Site "https://www.chess.com"]